fUSD/lending_fUSD_20251129
["ID","MTS","AMOUNT","RATE_DAILY","PERIOD"]
[395081177,1764409855243,-200.0,0.00015451,2]
[395081178,1764409855252,-334.5472959,0.00015451,2]
[395081179,1764409855261,-500.0,0.00015451,2]
[395081180,1764409855270,-200.0,0.00015451,2]
[395081181,1764409855279,-500.0,0.00015451,2]
[395081182,1764409855288,-500.0,0.00015451,2]
[395081183,1764409855297,-500.0,0.00015451,2]
[395081184,1764409855308,-500.0,0.00015451,2]
[395081185,1764409855320,-396.42302663,0.00015451,2]
[395081186,1764409855329,-151.0,0.00015451,2]
[395081187,1764409855339,-151.0,0.00015451,2]
[395081188,1764409855359,-151.0,0.00015451,2]
[395081189,1764409855368,-151.0,0.00015451,2]
[395081190,1764409855377,-151.0,0.00015451,2]
[395081191,1764409855386,-277.50242414,0.00015451,2]
[395081192,1764409855396,-500.0,0.00015451,2]
[395081193,1764409855405,-500.0,0.00015451,2]
[395081194,1764409855414,-500.0,0.00015451,2]
[395081195,1764409855429,-500.0,0.00015451,2]
[395081196,1764409855438,-500.0,0.00015451,2]
[395081197,1764409855446,-500.0,0.00015451,2]
[395081198,1764409855456,-500.0,0.00015451,2]
[395081199,1764409855465,-500.0,0.00015451,2]
[395081200,1764409855475,-500.0,0.00015451,2]
[395081201,1764409855484,-500.0,0.00015451,2]
[395081202,1764409855493,-500.0,0.00015451,2]
[395081203,1764409855502,-500.0,0.00015451,2]
[395081204,1764409855512,-250.0,0.00015451,2]
[395081205,1764409855521,-250.0,0.00015451,2]
[395081206,1764409855531,-250.0,0.00015451,2]
[395081207,1764409855540,-250.0,0.00015451,2]
[395081208,1764409855549,-250.0,0.00015451,2]
[395081209,1764409855558,-151.0,0.00015451,2]
[395081210,1764409855569,-151.0,0.00015451,2]
[395081211,1764409855579,-151.0,0.00015451,2]
[395081212,1764409855589,-151.0,0.00015451,2]
[395081213,1764409855598,-1010.0,0.00015458,2]
[395081214,1764409855607,-204.0,0.00015458,2]
[395081215,1764409855617,-1128.5220205,0.00015461,5]
[395081216,1764409855627,-500.0,0.00015461,2]
[395081217,1764409855637,-500.0,0.00015461,2]
[395081218,1764409855648,-500.0,0.00015461,2]
[395081219,1764409855659,-500.0,0.00015461,2]
[395081220,1764409855668,-500.0,0.00015461,2]
[395081221,1764409855677,-500.0,0.00015461,2]
[395081222,1764409855686,-500.0,0.00015461,2]
[395081223,1764409855695,-500.0,0.00015461,2]
[395081224,1764409855704,-500.0,0.00015461,2]
[395081225,1764409855713,-502.92711482,0.00015461,2]
[395081226,1764409855722,-500.0,0.00015461,2]
[395081227,1764409855732,-500.0,0.00015461,2]
[395081228,1764409855741,-500.18909078,0.00015461,2]
[395081229,1764409855751,-1319.34,0.00015472,2]
[395081230,1764409855761,-1952.0,0.00015489,2]
[395081231,1764409855771,-413.0,0.000155,2]
[395081232,1764409855780,-361.0,0.00015519,2]
[395081233,1764409855789,-243.58,0.00015532,2]
[395081234,1764409855800,-600.0,0.00015533,2]
[395081235,1764409855809,-150.0,0.00015538,2]
[395081236,1764409855820,-150.0,0.00015538,2]
[395081237,1764409855830,-150.0,0.00015538,2]
[395081238,1764409855842,-13647.44856674,0.00015542,2]
[395081239,1764409855853,-12050.72640782,0.00015542,2]
[395081240,1764409855862,-171.0,0.0001555,2]
[395081241,1764409855871,-1402.0,0.0001558,2]
[395081242,1764409855880,-86758.45698012,0.00015601,2]
[395081243,1764409855889,-412.0,0.00015611,2]
[395081244,1764409855899,-168.0,0.00015614,2]
[395081245,1764409855908,-600.0,0.00015626,2]
[395081246,1764409855920,-204.0,0.00015641,2]
[395081247,1764409855930,-1460.0,0.00015642,2]
[395081248,1764409855940,-150.0,0.00015655,2]
[395081249,1764409855949,-204.0,0.00015661,2]
[395081250,1764409855958,-204.0,0.0001567,2]
[395081251,1764409855967,-500.0,0.00015672,2]
[395081252,1764409855976,-500.0,0.00015672,2]
[395081253,1764409855987,-500.0,0.00015672,2]
[395081254,1764409855996,-500.0,0.00015672,2]
[395081255,1764409856005,-399.0,0.00015672,2]
[395081256,1764409856014,-204.0,0.00015675,2]
[395081257,1764409856023,-150.0,0.00015702,2]
[395081258,1764409856032,-1581.0,0.00015703,2]
[395081259,1764409856041,-204.0,0.00015707,2]
[395081260,1764409856050,-13647.44856674,0.00015712,2]
[395081261,1764409856059,-12050.72640782,0.00015712,2]
[395081262,1764409856068,-500.0,0.00015717,2]
[395081263,1764409856076,-500.0,0.00015717,2]
[395081264,1764409856085,-500.0,0.0001572,2]
[395081265,1764409856093,-500.0,0.0001572,2]
[395081266,1764409856102,-500.0,0.0001572,2]
[395081267,1764409856111,-500.0,0.0001572,2]
[395081268,1764409856418,-500.0,0.0001572,2]
[395081269,1764409856448,-500.0,0.0001572,2]
[395081270,1764409856457,-500.0,0.0001572,2]
[395081271,1764409856466,-500.27300015,0.0001572,2]
[395081272,1764409856476,-1300.1,0.00015725,2]
[395081273,1764409856485,-877.0,0.00015734,2]
[395081274,1764409856494,-166.66,0.00015748,2]
[395081275,1764409856504,-511.0,0.00015764,2]
[395081276,1764409856513,-500.0,0.00015772,2]
[395081277,1764409856522,-500.0,0.00015772,2]
[395081278,1764409856532,-500.0,0.00015772,2]
[395081279,1764409856541,-500.0,0.00015772,2]
[395081280,1764409856550,-976.0363201,0.00015782,2]
[395081281,1764409856559,-500.0,0.00015795,2]
[395081282,1764409856568,-500.0,0.00015795,2]
[395081283,1764409856577,-343.53785786,0.00015795,2]
[395081284,1764409856587,-500.0,0.00015795,2]
[395081285,1764409856595,-544.34192817,0.00015795,2]
[395081286,1764409856605,-520.29477814,0.00015795,2]
[395081287,1764409856614,-873.0,0.00015795,2]
[395081288,1764409856623,-438703.3897868,0.00015796,2]
[395081289,1764409856633,-984.343919,0.00015796,2]
[395081290,1764409856642,-984.343919,0.00015796,2]
[395081291,1764409856651,-984.343919,0.00015796,2]
[395081292,1764409856660,-984.343919,0.00015796,2]
[395081293,1764409856669,-151.0,0.00015796,2]
[395081294,1764409856678,-151.0,0.00015796,2]
[395081295,1764409856687,-527.774713,0.00015796,2]
[395081296,1764409856696,-527.774713,0.00015796,2]
[395081297,1764409856705,-151.0,0.00015796,2]
[395081298,1764409856714,-151.0,0.00015796,2]
[395081299,1764409856724,-527.774713,0.00015796,2]
[395081300,1764409856733,-151.0,0.00015796,2]
[395081301,1764409856742,-151.0,0.00015796,2]
[395081302,1764409856751,-527.774713,0.00015796,2]
[395081303,1764409856760,-153.029236,0.00015796,2]
[395081304,1764409856770,-153.029236,0.00015796,2]
[395081305,1764409856779,-153.029236,0.00015796,2]
[395081306,1764409856788,-151.0,0.00015796,2]
[395081307,1764409856797,-153.029236,0.00015796,2]
[395081308,1764409856807,-151.0,0.00015796,2]
[395081309,1764409856816,-176.264638,0.00015796,2]
[395081310,1764409856825,-151.0,0.00015796,2]
[395081311,1764409856834,-176.264638,0.00015796,2]
[395081312,1764409856843,-150.0,0.00015811,2]
[395081313,1764409856853,-150.0,0.00015811,2]
[395081314,1764409856862,-168.0,0.00015823,2]
[395081315,1764409856871,-1060.0,0.00015825,2]
[395081316,1764409856886,-7528.0,0.0001583,2]
[395081317,1764409856896,-685.0,0.00015856,2]
[395081318,1764409856906,-204.0,0.00015875,2]
[395081319,1764409856916,-13647.44856674,0.00015881,2]
[395081320,1764409856925,-12050.72640782,0.00015881,2]
[395081321,1764409856935,-325.0,0.00015887,2]
[395081322,1764409856946,-150.0,0.00015889,2]
[395081323,1764409856955,-600.0,0.000159,2]
[395081324,1764409856966,-666.0,0.000159,2]
[395081325,1764409856976,-1438.0,0.00015917,2]
[395081326,1764409856986,-150.0,0.00015947,2]
[395081327,1764409856996,-1252.0,0.00015948,2]
[395081328,1764409857006,-500.0,0.00015972,2]
[395081329,1764409857015,-500.0,0.00015973,2]
[395081330,1764409857024,-154.79663815,0.00015973,2]
[395081331,1764409857033,-160.04815265,0.00015973,2]
[395081332,1764409857043,-501.02061135,0.00015973,2]
[395081333,1764409857053,-500.0,0.00015973,2]
[395081334,1764409857062,-500.0,0.00015973,2]
[395081335,1764409857071,-500.0,0.00015973,2]
[395081336,1764409857081,-500.0,0.00015973,2]
[395081337,1764409857090,-500.0,0.00015973,2]
[395081338,1764409857100,-533.48476071,0.00015973,2]
[395081339,1764409857109,-500.0,0.00015973,2]
[395081340,1764409857118,-500.0,0.00015973,2]
[395081341,1764409857127,-500.0,0.00015973,2]
[395081342,1764409857137,-201.08259325,0.00015973,2]
[395081343,1764409857146,-500.0,0.00015973,2]
[395081344,1764409857155,-500.0,0.00015973,2]
[395081345,1764409857164,-500.0,0.00015973,2]
[395081346,1764409857173,-1086.0,0.00015978,2]
[395081347,1764409857183,-500.0,0.00015999,2]
[395081348,1764409857192,-500.0,0.00015999,2]
[395081349,1764409857201,-1300.1,0.00015999,2]
[395081350,1764409857210,-200.0,0.00015999,2]
[395081351,1764409857219,-457.06723581,0.00015999,2]
[395081352,1764409857229,-500.0,0.00015999,2]
[395081353,1764409857238,-200.0,0.00015999,2]
[395081354,1764409857247,-1185.0,0.00016009,2]
[395081355,1764409857257,-1321.0,0.0001601,2]
[395081356,1764409857267,-3441.0,0.0001601,2]
[395081357,1764409857276,-1603.0,0.0001601,2]
[395081358,1764409857285,-610.0,0.0001601,2]
[395081359,1764409857294,-1258.0,0.0001601,2]
[395081360,1764409857304,-640.0,0.0001601,2]
[395081361,1764409857314,-909.0,0.0001601,2]
[395081362,1764409857323,-1193.0,0.0001601,2]
[395081363,1764409857333,-250.0,0.0001601,2]
[395081364,1764409857343,-562.0,0.0001601,2]
[395081365,1764409857356,-150.0,0.00016029,2]
[395081366,1764409857365,-250.0,0.00016034,2]
[395081367,1764409857376,-13647.44856674,0.00016051,2]
[395081368,1764409857385,-12050.72640782,0.00016051,2]
[395081369,1764409857395,-168.0,0.0001608,2]
[395081370,1764409857405,-168.0,0.0001609,2]
[395081371,1764409857415,-204.0,0.00016098,2]
[395081372,1764409857425,-168.0,0.000161,2]
[395081373,1764409857434,-150.0,0.00016123,2]
[395081374,1764409857443,-600.0,0.00016174,2]
[395081375,1764409857451,-204.0,0.00016185,2]
[395081376,1764409857460,-195.0,0.00016193,2]
[395081377,1764409857469,-250.0,0.00016193,2]
[395081378,1764409857478,-261.3167003,0.000162,2]
[395081379,1764409857488,-150.0,0.000162,2]
[395081380,1764409857497,-190.91855773,0.000162,2]
[395081381,1764409857506,-13647.44856674,0.00016221,2]
[395081382,1764409857515,-12050.72640782,0.00016221,2]
[395081383,1764409857525,-1300.1,0.00016273,2]
[395081384,1764409857534,-1600.0,0.00016287,2]
[395081385,1764409857543,-200.0,0.00016356,2]
[395081386,1764409857552,-163.76965775,0.00016356,2]
[395081387,1764409857561,-150.0,0.00016356,2]
[395081388,1764409857570,-150.0,0.00016356,2]
[395081389,1764409857579,-150.0,0.00016356,2]
[395081390,1764409857588,-205.34,0.00016356,2]
[395081391,1764409857598,-150.0,0.00016356,2]
[395081392,1764409857607,-281.74205162,0.00016356,2]
[395081393,1764409857617,-150.00000001,0.00016356,2]
[395081394,1764409857626,-150.0,0.00016356,2]
[395081395,1764409857636,-204.0,0.00016366,2]
[395081396,1764409857646,-168.0,0.00016368,2]
[395081397,1764409857655,-166.66,0.00016372,2]
[395081398,1764409857666,-382.27926485,0.00016374,2]
[395081399,1764409857675,-13647.44856674,0.00016391,2]
[395081400,1764409857684,-12050.72640782,0.00016391,2]
[395081401,1764409857693,-227.0,0.000164,2]
[395081402,1764409857702,-318.0,0.000164,2]
[395081403,1764409857712,-182.0,0.000164,2]
[395081404,1764409857722,-183.05059022,0.000164,2]
[395081405,1764409857731,-500.0,0.00016437,2]
[395081406,1764409857740,-151.0,0.00016438,2]
[395081407,1764409857749,-151.0,0.00016438,2]
[395081408,1764409857758,-151.0,0.00016438,2]
[395081409,1764409857767,-151.0,0.00016438,2]
[395081410,1764409857777,-272.580257,0.00016438,2]
[395081411,1764409857785,-151.0,0.00016438,2]
[395081412,1764409857795,-202.729689,0.00016438,2]
[395081413,1764409857804,-272.580257,0.00016438,2]
[395081414,1764409857812,-202.729689,0.00016438,2]
[395081415,1764409857822,-272.580257,0.00016438,2]
[395081416,1764409857832,-202.729689,0.00016438,2]
[395081417,1764409857842,-272.580257,0.00016438,2]
[395081418,1764409857851,-202.729689,0.00016438,2]
[395081419,1764409857860,-151.0,0.00016438,2]
[395081420,1764409857869,-301.812631,0.00016438,2]
[395081421,1764409857879,-301.812631,0.00016438,2]
[395081422,1764409857889,-164.200652,0.00016438,2]
[395081423,1764409857899,-301.812631,0.00016438,2]
[395081424,1764409857908,-301.812631,0.00016438,2]
[395081425,1764409857917,-151.0,0.00016438,2]
[395081426,1764409857926,-151.0,0.00016438,2]
[395081427,1764409857936,-151.0,0.00016438,2]
[395081428,1764409857945,-151.0,0.00016438,2]
[395081429,1764409857953,-151.0,0.00016438,2]
[395081430,1764409857963,-151.0,0.00016438,2]
[395081431,1764409857974,-151.0,0.00016438,2]
[395081432,1764409857983,-151.0,0.00016438,2]
[395081433,1764409857992,-151.0,0.00016438,2]
[395081434,1764409858001,-151.0,0.00016438,2]
[395081435,1764409858010,-151.0,0.00016438,2]
[395081436,1764409858019,-151.0,0.00016438,2]
[395081437,1764409858028,-211.996587,0.00016438,2]
[395081438,1764409858038,-151.0,0.00016438,2]
[395081439,1764409858047,-206.58112,0.00016438,2]
[395081440,1764409858056,-151.0,0.00016438,2]
[395081441,1764409858066,-151.0,0.00016438,2]
[395081442,1764409858075,-241.387225,0.00016438,2]
[395081443,1764409858084,-151.0,0.00016438,2]
[395081444,1764409858093,-151.0,0.00016438,2]
[395081445,1764409858103,-151.0,0.00016438,2]
[395081446,1764409858112,-151.0,0.00016438,2]
[395081447,1764409858122,-151.0,0.00016438,2]
[395081448,1764409858131,-151.0,0.00016438,2]
[395081449,1764409858140,-188.413124,0.00016438,2]
[395081450,1764409858149,-151.0,0.00016438,2]
[395081451,1764409858158,-207.497313,0.00016438,2]
[395081452,1764409858167,-207.497313,0.00016438,2]
[395081453,1764409858176,-207.497313,0.00016438,2]
[395081454,1764409858185,-207.497313,0.00016438,2]
[395081455,1764409858195,-151.0,0.00016438,2]
[395081456,1764409858205,-151.0,0.00016438,2]
[395081457,1764409858214,-151.0,0.00016438,2]
[395081458,1764409858225,-151.0,0.00016438,2]
[395081459,1764409858234,-151.0,0.00016438,2]
[395081460,1764409858243,-1206.283192,0.00016438,2]
[395081461,1764409858253,-151.0,0.00016438,2]
[395081462,1764409858262,-1206.283192,0.00016438,2]
[395081463,1764409858271,-191.740232,0.00016438,2]
[395081464,1764409858280,-151.0,0.00016438,2]
[395081465,1764409858289,-1206.283192,0.00016438,2]
[395081466,1764409858298,-910.31694,0.00016438,2]
[395081467,1764409858309,-151.0,0.00016438,2]
[395081468,1764409858318,-1206.283192,0.00016438,2]
[395081469,1764409858329,-151.0,0.00016438,2]
[395081470,1764409858339,-151.0,0.00016438,2]
[395081471,1764409858351,-910.31694,0.00016438,2]
[395081472,1764409858360,-166.693348,0.00016438,2]
[395081473,1764409858369,-151.0,0.00016438,2]
[395081474,1764409858380,-154.616924,0.00016438,2]
[395081475,1764409858393,-910.31694,0.00016438,2]
[395081476,1764409858404,-293.67043,0.00016438,2]
[395081477,1764409858414,-151.0,0.00016438,2]
[395081478,1764409858426,-151.0,0.00016438,2]
[395081479,1764409858436,-154.616924,0.00016438,2]
[395081480,1764409858445,-295.914944,0.00016438,2]
[395081481,1764409858454,-910.31694,0.00016438,2]
[395081482,1764409858463,-293.67043,0.00016438,2]
[395081483,1764409858472,-151.0,0.00016438,2]
[395081484,1764409858481,-295.914944,0.00016438,2]
[395081485,1764409858490,-154.616924,0.00016438,2]
[395081486,1764409858499,-293.67043,0.00016438,2]
[395081487,1764409858509,-151.0,0.00016438,2]
[395081488,1764409858518,-151.0,0.00016438,2]
[395081489,1764409858528,-295.914944,0.00016438,2]
[395081490,1764409858537,-154.616924,0.00016438,2]
[395081491,1764409858546,-285.39626,0.00016438,2]
[395081492,1764409858555,-293.67043,0.00016438,2]
[395081493,1764409858564,-295.914944,0.00016438,2]
[395081494,1764409858573,-285.39626,0.00016438,2]
[395081495,1764409858582,-285.39626,0.00016438,2]
[395081496,1764409858591,-151.0,0.00016438,2]
[395081497,1764409858600,-285.39626,0.00016438,2]
[395081498,1764409858609,-151.0,0.00016438,2]
[395081499,1764409858618,-158.911944,0.00016438,2]
[395081500,1764409858628,-151.0,0.00016438,2]
[395081501,1764409858637,-158.911944,0.00016438,2]
[395081502,1764409858647,-151.0,0.00016438,2]
[395081503,1764409858656,-151.0,0.00016438,2]
[395081504,1764409858665,-158.911944,0.00016438,2]
[395081505,1764409858673,-151.0,0.00016438,2]
[395081506,1764409858682,-151.0,0.00016438,2]
[395081507,1764409858691,-158.911944,0.00016438,2]
[395081508,1764409858700,-151.0,0.00016438,2]
[395081509,1764409858709,-151.0,0.00016438,2]
[395081510,1764409858718,-151.0,0.00016438,2]
[395081511,1764409858726,-151.0,0.00016438,2]
[395081512,1764409858736,-151.0,0.00016438,2]
[395081513,1764409858745,-151.0,0.00016438,2]
[395081514,1764409858755,-151.0,0.00016438,2]
[395081515,1764409858763,-304.768612,0.00016438,2]
[395081516,1764409858773,-151.0,0.00016438,2]
[395081517,1764409858781,-304.768612,0.00016438,2]
[395081518,1764409858791,-304.768612,0.00016438,2]
[395081519,1764409858801,-304.768612,0.00016438,2]
[395081520,1764409858810,-204.484989,0.00016438,2]
[395081521,1764409858819,-1131.981494,0.00016438,2]
[395081522,1764409858830,-1131.981494,0.00016438,2]
[395081523,1764409858840,-1131.981494,0.00016438,2]
[395081524,1764409858849,-1131.981494,0.00016438,2]
[395081525,1764409858858,-244.068365,0.00016438,2]
[395081526,1764409858867,-244.068365,0.00016438,2]
[395081527,1764409858875,-151.0,0.00016438,2]
[395081528,1764409858884,-244.068365,0.00016438,2]
[395081529,1764409858893,-151.0,0.00016438,2]
[395081530,1764409858902,-244.068365,0.00016438,2]
[395081531,1764409858911,-938.63336,0.00016438,2]
[395081532,1764409858920,-151.0,0.00016438,2]
[395081533,1764409858928,-1905.919937,0.00016438,2]
[395081534,1764409858937,-938.63336,0.00016438,2]
[395081535,1764409858946,-151.0,0.00016438,2]
[395081536,1764409858955,-1905.919937,0.00016438,2]
[395081537,1764409858964,-206.775778,0.00016438,2]
[395081538,1764409858973,-1905.919937,0.00016438,2]
[395081539,1764409858982,-938.63336,0.00016438,2]
[395081540,1764409858990,-152.058445,0.00016438,2]
[395081541,1764409858999,-151.0,0.00016438,2]
[395081542,1764409859008,-1905.919937,0.00016438,2]
[395081543,1764409859017,-938.63336,0.00016438,2]
[395081544,1764409859026,-202.750974,0.00016438,2]
[395081545,1764409859035,-151.0,0.00016438,2]
[395081546,1764409859044,-151.0,0.00016438,2]
[395081547,1764409859053,-151.0,0.00016438,2]
[395081548,1764409859062,-151.0,0.00016438,2]
[395081549,1764409859071,-151.0,0.00016438,2]
[395081550,1764409859080,-151.0,0.00016438,2]
[395081551,1764409859089,-151.0,0.00016438,2]
[395081552,1764409859098,-151.0,0.00016438,2]
[395081553,1764409859106,-151.0,0.00016438,2]
[395081554,1764409859115,-278.940356,0.00016438,2]
[395081555,1764409859124,-401.732221,0.00016438,2]
[395081556,1764409859133,-151.0,0.00016438,2]
[395081557,1764409859142,-401.732221,0.00016438,2]
[395081558,1764409859151,-151.0,0.00016438,2]
[395081559,1764409859160,-401.732221,0.00016438,2]
[395081560,1764409859170,-367.516198,0.00016438,2]
[395081561,1764409859179,-401.732221,0.00016438,2]
[395081562,1764409859188,-367.516198,0.00016438,2]
[395081563,1764409859197,-367.516198,0.00016438,2]
[395081564,1764409859206,-367.516198,0.00016438,2]
[395081565,1764409859215,-151.0,0.00016438,2]
[395081566,1764409859223,-151.0,0.00016438,2]
[395081567,1764409859232,-151.0,0.00016438,2]
[395081568,1764409859241,-151.0,0.00016438,2]
[395081569,1764409859250,-151.0,0.00016438,2]
[395081570,1764409859259,-175.880426,0.00016438,2]
[395081571,1764409859268,-151.0,0.00016438,2]
[395081572,1764409859277,-217.153402,0.00016438,2]
[395081573,1764409859286,-217.153402,0.00016438,2]
[395081574,1764409859295,-217.153402,0.00016438,2]
[395081575,1764409859304,-217.153402,0.00016438,2]
[395081576,1764409859313,-1008.032389,0.00016438,2]
[395081577,1764409859322,-151.0,0.00016438,2]
[395081578,1764409859336,-1008.032389,0.00016438,2]
[395081579,1764409859349,-151.0,0.00016438,2]
[395081580,1764409859359,-1008.032389,0.00016438,2]
[395081581,1764409859369,-151.0,0.00016438,2]
[395081582,1764409859379,-1008.032389,0.00016438,2]
[395081583,1764409859389,-151.0,0.00016438,2]
[395081584,1764409859400,-607.3844,0.00016438,2]
[395081585,1764409859409,-151.0,0.00016438,2]
[395081586,1764409859418,-151.0,0.00016438,2]
[395081587,1764409859427,-151.0,0.00016438,2]
[395081588,1764409859436,-151.0,0.00016438,2]
[395081589,1764409859445,-151.0,0.00016438,2]
[395081590,1764409859455,-607.3844,0.00016438,2]
[395081591,1764409859467,-151.0,0.00016438,2]
[395081592,1764409859476,-151.0,0.00016438,2]
[395081593,1764409859485,-607.3844,0.00016438,2]
[395081594,1764409859495,-151.0,0.00016438,2]
[395081595,1764409859505,-151.0,0.00016438,2]
[395081596,1764409859515,-151.0,0.00016438,2]
[395081597,1764409859524,-607.3844,0.00016438,2]
[395081598,1764409859534,-151.0,0.00016438,2]
[395081599,1764409859543,-151.0,0.00016438,2]
[395081600,1764409859552,-180.878714,0.00016438,2]
[395081601,1764409859561,-151.0,0.00016438,2]
[395081602,1764409859570,-151.0,0.00016438,2]
[395081603,1764409859580,-151.0,0.00016438,2]
[395081604,1764409859589,-917.229255,0.00016438,2]
[395081605,1764409859598,-151.0,0.00016438,2]
[395081606,1764409859608,-151.0,0.00016438,2]
[395081607,1764409859618,-917.229255,0.00016438,2]
[395081608,1764409859626,-917.229255,0.00016438,2]
[395081609,1764409859635,-917.229255,0.00016438,2]
[395081610,1764409859644,-151.0,0.00016438,2]
[395081611,1764409859653,-151.0,0.00016438,2]
[395081612,1764409859662,-181.389035,0.00016438,2]
[395081613,1764409859671,-247.015437,0.00016438,2]
[395081614,1764409859680,-151.0,0.00016438,2]
[395081615,1764409859689,-151.0,0.00016438,2]
[395081616,1764409859698,-195.97426,0.00016438,2]
[395081617,1764409859707,-151.0,0.00016438,2]
[395081618,1764409859716,-195.97426,0.00016438,2]
[395081619,1764409859725,-195.97426,0.00016438,2]
[395081620,1764409859734,-195.97426,0.00016438,2]
[395081621,1764409859743,-287.093988,0.00016438,2]
[395081622,1764409859752,-151.0,0.00016438,2]
[395081623,1764409859761,-287.093988,0.00016438,2]
[395081624,1764409859770,-151.0,0.00016438,2]
[395081625,1764409859779,-287.093988,0.00016438,2]
[395081626,1764409859788,-151.0,0.00016438,2]
[395081627,1764409859797,-151.0,0.00016438,2]
[395081628,1764409859806,-287.093988,0.00016438,2]
[395081629,1764409859814,-151.0,0.00016438,2]
[395081630,1764409859823,-151.0,0.00016438,2]
[395081631,1764409859832,-151.0,0.00016438,2]
[395081632,1764409859841,-214.177336,0.00016438,2]
[395081633,1764409859850,-151.0,0.00016438,2]
[395081634,1764409859860,-214.177336,0.00016438,2]
[395081635,1764409859869,-151.0,0.00016438,2]
[395081636,1764409859878,-151.0,0.00016438,2]
[395081637,1764409859887,-214.177336,0.00016438,2]
[395081638,1764409859896,-326.585679,0.00016438,2]
[395081639,1764409859906,-214.177336,0.00016438,2]
[395081640,1764409859914,-326.585679,0.00016438,2]
[395081641,1764409859924,-329.173807,0.00016438,2]
[395081642,1764409859933,-326.585679,0.00016438,2]
[395081643,1764409859942,-151.0,0.00016438,2]
[395081644,1764409859951,-329.173807,0.00016438,2]
[395081645,1764409859960,-326.585679,0.00016438,2]
[395081646,1764409859969,-151.0,0.00016438,2]
[395081647,1764409859978,-329.173807,0.00016438,2]
[395081648,1764409859987,-151.0,0.00016438,2]
[395081649,1764409859997,-329.173807,0.00016438,2]
[395081650,1764409860006,-151.0,0.00016438,2]
[395081651,1764409860015,-151.0,0.00016438,2]
[395081652,1764409860026,-151.0,0.00016438,2]
[395081653,1764409860036,-157.376194,0.00016438,2]
[395081654,1764409860045,-151.0,0.00016438,2]
[395081655,1764409860055,-500.0,0.00016438,2]
[395081656,1764409860064,-500.0,0.00016438,2]
[395081657,1764409860080,-576.67319889,0.00016438,2]
[395081658,1764409860089,-151.0,0.00016438,2]
[395081659,1764409860100,-151.0,0.00016438,2]
[395081660,1764409860110,-195.260651,0.00016438,2]
[395081661,1764409860120,-154.951959,0.00016438,2]
[395081662,1764409860129,-299.904731,0.00016438,2]
[395081663,1764409860139,-184.488376,0.00016438,2]
[395081664,1764409860148,-195.260651,0.00016438,2]
[395081665,1764409860158,-299.904731,0.00016438,2]
[395081666,1764409860167,-299.904731,0.00016438,2]
[395081667,1764409860176,-195.260651,0.00016438,2]
[395081668,1764409860185,-299.904731,0.00016438,2]
[395081669,1764409860195,-195.260651,0.00016438,2]
[395081670,1764409860204,-3039.77404,0.00016438,2]
[395081671,1764409860214,-3039.77404,0.00016438,2]
[395081672,1764409860224,-3039.77404,0.00016438,2]
[395081673,1764409860233,-3039.77404,0.00016438,2]
[395081674,1764409860243,-151.0,0.00016438,2]
[395081675,1764409860252,-151.0,0.00016438,2]
[395081676,1764409860262,-234.607185,0.00016438,2]